bitfinex-derivatives/quotes_ETHF0:USTF0_20260305
["timestamp","ask_amount","ask_price","bid_price","bid_amount"]
[1772694879475,10.76228295,2130.1,2129.5,0.59179103]
[1772694880174,11.30624927,2130.1,2129.5,0.59179103]
[1772694880374,0.54396632,2130.0,2129.5,0.59179103]
[1772694886672,10.792,2130.0,2129.5,0.59179103]
[1772694887069,11.33596632,2130.0,2129.5,0.59179103]
[1772694888076,0.54824927,2130.1,2129.6,0.59179103]
[1772694888271,10.802,2130.0,2129.6,0.59179103]
[1772694888681,11.3916,2130.0,2129.6,0.59179103]
[1772694889180,0.59388295,2130.1,2129.6,0.59179103]
[1772694889383,10.81328295,2130.1,2129.8,0.57290238]
[1772694889684,0.5896,2130.3,2129.8,0.57718532]
[1772694889685,11.4016,2130.3,2129.8,0.57718532]
[1772694890079,0.5896,2130.2,2129.8,0.57718532]
[1772694890583,0.59504632,2130.2,2129.8,0.57718532]
[1772694897289,0.59504632,2130.2,2129.6,0.57290238]
[1772694899589,0.59504632,2130.2,2129.5,0.57290238]
[1772694903896,0.5896,2130.0,2129.5,0.57290238]
[1772694904097,0.5896,2130.0,2129.4,0.57290238]
[1772694905998,10.92744632,2130.2,2129.8,0.57290238]
[1772694906299,8.93833183,2130.7,2129.8,0.57290238]
[1772694906300,0.5896,2130.6,2130.2,0.57290238]
[1772694906706,10.926,2130.7,2130.4,0.57290238]
[1772694907003,3.93395135,2131.1,2130.4,0.57290238]
[1772694907004,0.5896,2130.8,2130.4,0.57290238]
[1772694907206,10.929,2130.7,2130.4,0.57290238]
[1772694907499,0.59396658,2130.8,2130.4,0.57290238]
[1772694907701,11.5216,2131.0,2130.5,0.57290238]
[1772694907903,0.5896,2130.9,2130.5,0.57290238]
[1772694908699,0.00477783,2130.9,2130.5,0.57290238]
[1772694909207,7.83e-06,2130.9,2130.7,0.57290238]
[1772694909799,7.83e-06,2130.9,2130.2,0.57290238]
[1772694909800,0.5896,2130.8,2130.2,0.57290238]
[1772694909998,7.83e-06,2130.9,2130.2,0.57290238]
[1772694909999,0.5896,2130.6,2130.2,0.57290238]
[1772694910206,0.5896,2130.6,2129.9,1.58751476]
[1772694910507,0.5896,2130.6,2130.0,0.57290238]
[1772694912110,11.5416,2130.5,2130.0,0.57290238]
[1772694913709,0.5896,2130.5,2130.0,0.57290238]
[1772694913907,10.959,2130.7,2130.2,0.57290238]
[1772694914108,11.5496,2130.8,2130.2,0.57290238]
[1772694914812,0.5896,2130.7,2130.2,0.57290238]
[1772694917010,11.5576,2130.7,2130.2,0.57290238]
[1772694917209,0.5896,2130.6,2130.2,0.57290238]
[1772694917712,0.5896,2130.6,2130.0,0.57290238]
[1772694919209,0.5896,2130.6,2130.1,1.58751476]
[1772694919408,11.5636,2130.6,2130.2,0.55892295]
[1772694921212,0.54375263,2130.5,2130.2,0.55892295]
[1772694921513,10.974,2130.6,2130.2,0.55892295]
[1772694921911,11.51775263,2130.6,2130.2,0.55892295]
[1772694922112,0.54375263,2130.5,2129.9,0.55892295]
[1772694922511,11.52375263,2130.8,2129.9,0.55892295]
[1772694923014,0.54375263,2130.7,2129.9,0.55892295]
[1772694935820,0.55442943,2130.6,2130.0,0.55077953]
[1772694938530,0.55442943,2130.6,2129.9,3.88811837]
[1772694938733,0.55442943,2130.6,2129.8,0.00395623]
[1772694938934,0.55442943,2130.5,2129.8,0.00395623]
[1772694939228,0.55442943,2130.5,2129.8,0.55473576]
[1772694939435,11.54642943,2130.4,2129.8,0.55473576]
[1772694939629,11.54742943,2130.4,2129.8,0.55473576]
[1772694940128,0.55442943,2130.4,2129.8,0.55473576]
[1772694940332,0.55442943,2130.6,2129.8,0.55473576]
[1772694940532,10.994,2130.5,2129.8,0.55473576]
[1772694940832,11.54842943,2130.5,2129.8,0.55473576]
[1772694941034,3.92469265,2130.8,2130.1,0.55077953]
[1772694941035,0.55442943,2130.7,2130.1,0.55077953]
[1772694942327,3.92470048,2130.9,2130.1,0.55077953]
[1772694942529,0.55443726,2130.9,2130.1,0.55077953]
[1772694943427,11.55442943,2130.8,2130.1,0.55077953]
[1772694943728,0.55442943,2130.8,2130.1,0.55077953]
[1772694943934,7.83e-06,2130.9,2130.3,0.55077953]
[1772694944135,7.83e-06,2130.9,2130.4,0.55077953]
[1772694945440,7.83e-06,2130.9,2130.2,0.55077953]
[1772694946538,11.56242943,2131.1,2130.4,0.55077953]
[1772694947138,0.55442943,2131.0,2130.4,0.55077953]
[1772694947538,0.5591345,2131.0,2130.4,0.55077953]
[1772694949641,0.5591345,2131.0,2130.2,4.4381629]
[1772694949837,0.5591345,2131.0,2130.3,0.55004453]
[1772694951941,11.025,2130.9,2130.3,0.55004453]
[1772694952441,11.61147644,2130.9,2130.3,0.55004453]
[1772694952834,0.58647644,2130.8,2130.3,0.55004453]
[1772694953742,0.59118151,2131.0,2130.3,0.55004453]
[1772694953946,11.62118151,2131.0,2130.3,0.55004453]
[1772694954147,0.58647644,2130.9,2130.3,0.55004453]
[1772694956038,0.58647644,2130.8,2130.3,0.55004453]
[1772694956549,0.58647644,2130.8,2130.2,0.55004453]
[1772694958748,0.59118151,2131.0,2130.2,0.55004453]
[1772694958940,0.58647644,2130.8,2130.2,0.55004453]
[1772694960653,0.58647644,2130.7,2130.2,0.55004453]
[1772694964857,0.58647644,2130.7,2129.8,0.00395623]
[1772694965162,0.58647644,2130.7,2129.8,0.55400076]
[1772694966564,0.58647644,2130.7,2129.8,0.00395623]
[1772694966759,4.51116909,2130.7,2129.8,0.00395623]
[1772694966959,0.58647644,2130.6,2129.8,0.00395623]
[1772694967466,0.58647644,2130.4,2129.5,0.78479453]
[1772694967766,0.58647644,2130.2,2129.6,0.55004453]
[1772694968460,0.58647644,2130.2,2129.6,0.55455709]
[1772694972769,0.58647644,2130.2,2129.5,0.55004453]
[1772694972966,0.58647644,2130.2,2129.1,0.55004453]
[1772694973858,0.58647644,2130.1,2129.1,0.55559599]
[1772694974065,0.58647644,2129.8,2128.8,0.55004453]
[1772694974367,0.58647644,2129.6,2128.8,0.55004453]
[1772694974769,0.58647644,2129.9,2129.0,0.55004453]
[1772694975069,0.58647644,2129.7,2129.0,0.55004453]
[1772694976469,0.58647644,2130.3,2129.0,0.55004453]
[1772694976661,0.58647644,2130.1,2129.0,0.55004453]
[1772694978365,0.58647644,2130.1,2129.2,0.55004453]
[1772694978668,0.58647644,2129.9,2129.2,0.55004453]
[1772694979072,0.58647644,2129.9,2129.4,0.59090606]
[1772694981075,11.66106331,2130.0,2129.4,0.59090606]
[1772694981471,0.56806331,2129.9,2129.4,0.59090606]
[1772694982367,0.56806331,2129.9,2128.9,0.59090606]
[1772694982572,0.56806331,2129.6,2128.9,0.59090606]
[1772694984370,0.56806331,2129.6,2129.0,0.59090606]
[1772694985772,0.56806331,2129.8,2129.2,0.59090606]
[1772694985978,0.56806331,2129.7,2129.2,0.59090606]
[1772694989175,0.56806331,2129.7,2129.1,0.2348]
[1772694989376,0.56806331,2129.7,2129.1,0.79045305]
[1772694989576,0.56806331,2129.7,2129.2,0.55565305]
[1772694990979,0.56806331,2129.7,2129.1,0.2348]
[1772694991180,0.58256078,2129.6,2129.0,0.55565305]
[1772694991380,0.58256078,2129.4,2128.8,0.55565305]
[1772694991578,0.58804218,2129.4,2128.8,0.55565305]
[1772694992074,0.58256078,2129.2,2128.7,0.55565305]
[1772694992470,0.58256078,2129.3,2128.7,0.55565305]
[1772694992671,0.58256078,2129.2,2128.8,0.55565305]
[1772694993081,0.58256078,2129.2,2128.7,0.54619392]
[1772694994682,0.58256078,2129.2,2128.6,0.23485]
[1772695002882,0.60734548,2129.0,2128.4,1.26584045]
[1772695003376,0.0054814,2129.4,2128.5,1.58829548]
[1772695003576,0.58256078,2129.3,2128.9,2.06313652]
[1772695003779,0.58256078,2129.3,2128.9,0.47484104]
[1772695005382,0.58256078,2129.3,2128.8,0.7158256]
[1772695007088,0.58256078,2129.3,2128.8,0.71483283]
[1772695008889,0.58256078,2129.3,2128.8,0.23483]
[1772695009190,0.58256078,2129.3,2128.8,0.71570194]
[1772695010192,0.58256078,2129.3,2128.8,0.23483]
[1772695010788,0.55453957,2129.2,2128.5,0.48087194]
[1772695012190,0.55453957,2128.8,2128.2,0.48319541]
[1772695012394,0.55453957,2128.7,2128.0,0.48319541]
[1772695012891,0.55453957,2128.8,2128.5,0.53838692]
[1772695013095,0.55453957,2128.8,2128.4,2.1266824]
[1772695013288,0.55453957,2128.8,2128.4,0.53838692]
[1772695013595,0.55453957,2128.8,2127.8,5.80390486]
[1772695013596,0.55453957,2128.8,2127.9,0.53838692]
[1772695014300,0.55453957,2128.9,2128.5,0.53838692]
[1772695014794,0.55453957,2128.9,2128.4,0.53838692]
[1772695015200,0.55453957,2128.9,2128.3,0.53838692]
[1772695016194,0.55453957,2128.9,2128.5,0.53838692]
[1772695016392,0.55453957,2128.9,2128.5,2.1266824]
[1772695016596,0.0054814,2129.4,2128.8,0.53838692]
[1772695016597,0.55453957,2129.1,2128.8,0.53838692]
[1772695016990,0.55453957,2129.1,2128.6,0.53838692]
[1772695018394,0.55453957,2129.3,2128.8,0.53838692]
[1772695019099,0.55453957,2129.3,2129.0,0.53838692]
[1772695019498,11.69102097,2129.4,2129.0,0.53838692]
[1772695019697,0.55453957,2129.6,2129.1,1.58829548]
[1772695020003,0.55453957,2129.6,2129.2,0.53838692]
[1772695020800,0.55826952,2129.6,2129.2,0.00445383]
[1772695021490,0.55826952,2129.6,2129.0,0.53838692]
[1772695022602,0.55826952,2129.6,2129.0,0.53998498]
[1772695023802,0.55453957,2129.5,2129.0,0.53998498]
[1772695024206,0.55453957,2129.5,2129.0,0.00159806]
[1772695026603,0.55453957,2129.3,2128.6,0.53838692]
[1772695031608,11.70453957,2129.3,2128.8,0.53838692]
[1772695032003,0.55453957,2129.2,2128.8,0.53838692]
[1772695032203,1.59202543,2129.6,2128.7,1.58829548]
[1772695032204,0.55453957,2129.5,2129.0,0.53838692]
[1772695032405,0.55826952,2129.6,2129.0,0.53838692]
[1772695032605,0.55453957,2129.3,2128.7,0.23484]
[1772695032807,0.55453957,2129.3,2128.7,0.77322692]
[1772695035312,0.55453957,2128.9,2128.4,0.53838692]
[1772695039606,0.55453957,2128.9,2128.2,0.81041647]
[1772695039800,0.55453957,2128.9,2128.3,0.57552647]
[1772695041914,0.55385849,2128.7,2128.2,0.81041647]
[1772695042109,0.55385849,2128.7,2128.2,0.23489]
[1772695042312,0.55385849,2128.7,2128.3,0.57552647]
[1772695042706,0.55385849,2128.7,2128.2,0.23489]
[1772695042911,0.55385849,2128.7,2128.2,0.81041647]
[1772695043609,0.55385849,2128.7,2128.3,0.57552647]
[1772695045309,0.55385849,2128.7,2128.2,0.81041647]
[1772695045612,0.55385849,2128.7,2128.3,0.57552647]
[1772695047008,0.55699274,2128.5,2128.0,1.28289723]
[1772695051314,0.55699274,2128.5,2127.8,0.56293991]
[1772695052817,11.73399274,2128.4,2127.8,0.56293991]
[1772695053019,11.73499274,2128.4,2127.8,0.56293991]
[1772695053217,0.55699274,2128.3,2127.7,0.23495]
[1772695053516,0.55699274,2128.3,2127.8,0.56293991]
[1772695056323,0.55699274,2128.3,2127.7,0.56293991]
[1772695057127,0.55699274,2128.3,2127.2,0.235]
[1772695057128,0.55699274,2128.3,2127.6,0.56293991]
[1772695057824,3.92469265,2128.8,2127.7,0.56293991]
[1772695058031,0.55699274,2128.6,2127.7,0.56293991]
[1772695058326,0.55699274,2128.4,2127.7,0.56293991]
[1772695058927,11.73999274,2128.4,2127.7,0.56293991]
[1772695059126,0.55699274,2128.3,2127.7,0.56293991]
[1772695063728,0.55699274,2128.3,2127.5,0.56293991]
[1772695067229,0.55699274,2128.3,2127.4,0.56293991]
[1772695069232,0.59668451,2128.1,2127.4,0.56293991]
[1772695069428,0.60059605,2128.1,2127.4,0.56293991]
[1772695069933,0.60059605,2128.1,2127.6,0.58239007]
[1772695070133,0.59668451,2128.0,2127.6,0.58239007]
[1772695072131,0.59668451,2128.0,2127.3,0.58239007]
[1772695073335,11.78768451,2128.0,2127.3,0.58239007]
[1772695074236,0.59668451,2127.9,2127.3,0.58239007]
[1772695075340,11.79159605,2128.1,2127.3,0.58239007]
[1772695075637,0.59668451,2128.0,2127.3,0.58239007]
[1772695082945,0.59668451,2127.9,2127.1,0.58239007]
[1772695083243,0.59668451,2127.9,2127.3,0.58239007]
[1772695085436,0.60059605,2128.1,2127.5,0.58239007]
[1772695086646,0.60059605,2128.1,2127.1,0.58239007]
[1772695091946,0.59668451,2128.0,2127.1,0.58239007]
[1772695092946,0.59668451,2128.0,2127.0,0.58239007]
[1772695093651,0.59668451,2127.9,2127.0,0.58239007]
[1772695094149,0.59668451,2127.7,2127.2,0.58239007]
[1772695096050,0.59668451,2127.7,2127.1,0.23502]
[1772695099457,0.59668451,2127.7,2127.0,0.42500803]
[1772695100962,0.59668451,2127.7,2127.1,0.42956946]
[1772695101351,11.217,2127.8,2127.1,0.42956946]
[1772695101659,11.79814902,2127.9,2127.3,0.43058951]
[1772695102159,0.58114902,2128.0,2127.3,0.43058951]
[1772695103061,0.58114902,2128.0,2127.5,0.43058951]
[1772695103263,0.00391154,2128.1,2127.5,0.43058951]
[1772695103264,0.58506056,2128.1,2127.6,0.39604043]
[1772695104559,0.58506056,2128.1,2127.7,0.39604043]
[1772695109762,0.58588443,2128.5,2127.8,0.23494]
[1772695109962,0.58588443,2128.5,2127.8,2.20223079]
[1772695110169,11.235,2128.7,2127.5,0.37728939]
[1772695110170,0.58588443,2128.1,2127.5,0.37728939]
[1772695110766,0.59016138,2128.1,2127.5,1.97120233]
[1772695111563,0.59016138,2128.1,2127.5,0.00391154]
[1772695114369,0.59016138,2128.1,2127.5,0.37902507]
[1772695114568,0.58588443,2128.0,2127.6,0.37511353]
[1772695115171,0.58588443,2128.0,2127.5,1.96902647]
[1772695115862,0.58588443,2128.0,2127.5,0.37902507]
[1772695116069,0.58588443,2128.0,2127.5,0.37934653]
[1772695117270,0.58588443,2128.0,2127.6,0.37779216]
[1772695118168,3.92469265,2128.5,2127.8,0.58385523]
[1772695118169,0.58588443,2128.3,2127.8,0.58385523]
[1772695118371,0.58588443,2128.5,2128.1,2.17385663]
[1772695118573,0.58588443,2128.5,2127.9,0.58385523]
[1772695119182,0.58588443,2128.6,2128.3,0.58385523]
[1772695119372,5.84436404,2129.2,2128.4,0.59724544]
[1772695119373,3.92469265,2129.2,2128.4,0.59724544]
[1772695119568,11.253,2129.1,2128.6,0.59724544]
[1772695119970,11.253,2129.1,2128.2,0.59724544]
[1772695120376,12.84824611,2129.1,2128.2,0.59724544]
[1772695121286,0.00459239,2129.0,2128.2,0.59724544]
[1772695122888,11.259,2128.9,2128.2,0.59724544]
[1772695123285,11.26,2128.9,2128.2,0.59724544]
[1772695124689,1.5900014,2128.8,2128.0,0.83509596]
[1772695124890,1.5900014,2128.8,2128.1,0.60017596]
[1772695125687,0.00524471,2129.1,2128.1,0.60017596]
[1772695125889,1.5900014,2128.9,2128.1,0.60017596]
[1772695126691,11.265,2128.8,2128.1,0.60017596]
[1772695130584,1.5900014,2128.7,2127.8,0.60116924]
[1772695133491,1.5900014,2128.5,2127.8,0.60116924]
[1772695134090,1.5900014,2128.5,2127.6,0.6040243]
[1772695134592,1.5900014,2128.7,2127.6,0.6040243]
[1772695134593,1.5900014,2128.3,2127.6,0.6040243]
[1772695134788,11.278,2128.2,2127.6,0.6040243]
[1772695136193,11.278,2128.2,2127.5,0.84700354]
[1772695136388,1.5900014,2128.1,2127.5,0.84700354]
[1772695137192,0.00761675,2128.0,2127.5,0.61203354]
[1772695142502,0.00761675,2128.0,2127.3,0.58494379]
[1772695142704,1.5900014,2128.1,2127.2,0.58494379]
[1772695142705,0.0245602,2127.8,2127.2,0.58494379]
[1772695142897,0.0245602,2127.6,2127.2,0.58494379]
[1772695143605,0.0306238,2127.6,2127.2,0.58828283]
[1772695145103,0.0060636,2127.6,2127.2,0.58828283]
[1772695145807,11.299,2128.0,2127.6,0.58660121]
[1772695146104,11.3,2128.0,2127.6,0.58660121]
[1772695146305,0.02124534,2128.2,2127.6,0.58660121]
[1772695146507,11.32124534,2128.2,2127.6,0.58660121]
[1772695146799,11.32586882,2128.2,2127.6,0.58660121]
[1772695148807,11.32586882,2128.2,2127.8,0.58000955]
[1772695148808,0.00462348,2128.2,2127.8,0.58000955]
[1772695151108,0.03442867,2128.4,2127.8,0.58000955]
[1772695151409,11.31,2128.3,2127.8,0.58000955]
[1772695151804,11.311,2128.4,2128.0,0.5766745]
[1772695152006,11.36074933,2128.4,2128.0,0.5766745]
[1772695152207,0.04974933,2128.3,2127.8,0.5766745]
[1772695153811,11.31515617,2128.4,2127.8,0.5766745]
[1772695157518,0.00415617,2128.4,2127.8,0.5766745]
[1772695157717,11.32615617,2128.4,2127.8,0.5766745]
[1772695159118,11.37659682,2128.4,2127.8,0.5766745]
[1772695161023,0.05077073,2128.3,2127.8,0.5766745]
[1772695162920,0.05077073,2128.3,2127.4,0.57179491]
[1772695163120,0.05077073,2128.3,2127.6,0.57179491]
[1772695167832,0.05077073,2128.3,2127.5,0.57158007]
[1772695169241,0.00415617,2128.4,2127.7,0.57038853]
[1772695169541,11.35615617,2128.4,2127.7,0.57038853]
[1772695169937,11.41082053,2128.4,2127.7,0.57038853]
[1772695174439,11.368,2128.3,2127.7,0.57038853]
[1772695174637,0.04104477,2128.2,2127.7,0.57038853]
[1772695175135,0.04104477,2128.2,2127.4,0.57719833]
[1772695183651,3.93667864,2128.1,2127.3,0.59172772]
[1772695183851,0.01198599,2128.0,2127.3,0.59172772]
[1772695184952,0.01198599,2128.0,2127.2,0.59506676]
[1772695185354,0.00660595,2128.0,2127.2,0.59506676]
[1772695194655,11.429,2127.9,2127.2,0.59506676]
[1772695197261,0.00235241,2127.8,2127.2,0.59506676]
[1772695197563,3.92469265,2128.0,2127.2,0.59506676]
[1772695197766,0.00415617,2128.4,2127.6,0.59707389]
[1772695197955,3.92469265,2128.6,2127.7,0.83203389]
[1772695197956,11.443,2128.6,2127.7,0.83203389]
[1772695198266,7.35081707,2129.3,2128.3,0.59707389]
[1772695198267,0.00650858,2129.3,2128.3,0.59707389]
[1772695198862,0.00650858,2129.2,2128.3,0.59707389]
[1772695202260,0.05247476,2128.8,2128.3,0.59707389]
[1772695202461,11.50847476,2128.7,2127.7,0.59707389]
[1772695202662,0.05247476,2128.7,2127.7,0.59707389]
[1772695203667,11.456,2128.8,2127.7,0.59707389]
[1772695203966,12.02344116,2128.8,2127.7,0.59707389]
[1772695204568,0.56744116,2128.7,2127.7,0.59707389]
[1772695213977,12.02644116,2128.7,2127.7,0.59707389]
[1772695214474,6.338,2129.2,2127.9,0.59707389]
[1772695214776,0.56744116,2129.0,2128.0,0.59707389]
[1772695215075,0.56744116,2129.0,2128.2,0.59707389]
[1772695223186,0.56744116,2129.0,2127.9,0.58945733]
[1772695223379,0.57264957,2128.8,2127.9,0.58945733]
[1772695223584,12.02564957,2128.8,2127.9,0.58945733]
[1772695224786,0.57264957,2128.7,2127.9,0.58945733]
[1772695224987,0.57264957,2129.0,2128.0,0.58945733]
[1772695226586,0.57264957,2129.0,2128.3,0.58945733]
[1772695229397,0.58626128,2128.9,2128.3,0.58945733]
[1772695231298,0.58626128,2128.7,2128.1,0.57530924]
[1772695233902,0.58626128,2128.7,2127.9,0.57530924]
[1772695234601,0.58626128,2128.5,2127.7,0.57530924]
[1772695234901,0.58626128,2128.4,2127.7,0.57530924]
[1772695235302,11.472,2128.5,2127.9,0.57530924]
[1772695235503,12.05826128,2128.5,2127.9,0.57530924]
[1772695235706,0.58626128,2128.4,2127.9,0.57530924]
[1772695237306,11.472,2128.5,2127.9,0.57530924]
[1772695237607,12.05826128,2128.5,2127.9,0.57530924]
[1772695237804,0.58626128,2128.4,2127.9,0.57530924]
[1772695247819,0.58626128,2128.4,2127.7,0.57530924]
[1772695251816,0.56838933,2128.1,2127.5,0.56178965]
[1772695252017,0.56838933,2127.9,2127.5,0.56178965]
[1772695252216,12.11938933,2128.0,2127.5,0.56178965]
[1772695252920,12.11938933,2128.0,2127.4,0.56178965]
[1772695255422,0.56838933,2127.9,2127.4,0.56178965]
[1772695257228,11.576,2128.0,2127.6,0.56178965]
[1772695258622,12.14438933,2128.0,2127.6,0.56178965]
[1772695262128,0.56838933,2128.0,2127.6,0.56178965]
[1772695262727,0.56838933,2128.0,2127.4,1.58922267]
[1772695262928,0.56838933,2127.6,2127.2,0.00333904]
[1772695263126,0.57288384,2127.6,2127.1,0.56178965]
[1772695263328,0.57288384,2127.6,2127.0,1.83866582]
[1772695264022,0.00449451,2127.6,2127.1,2.15101232]
[1772695264227,0.57288384,2127.6,2127.1,2.15463219]
[1772695264431,2.16210651,2127.6,2127.1,0.00361987]
[1772695264626,0.56838933,2127.5,2127.1,0.00361987]
[1772695264828,0.56838933,2127.5,2127.0,1.83866582]
[1772695265828,0.56838933,2127.5,2127.0,1.84296569]
[1772695268129,1.58922267,2127.4,2126.5,6.157]
[1772695268329,0.56838933,2127.1,2126.6,0.56178965]
[1772695269332,0.56838933,2127.1,2126.6,0.56548611]
[1772695270030,0.56838933,2127.3,2126.9,0.56178965]
[1772695270235,0.00449451,2127.6,2126.6,0.00369646]
[1772695270236,0.56838933,2127.4,2127.1,0.56178965]
[1772695270735,0.56838933,2127.4,2126.9,0.56178965]
[1772695272334,2.157612,2127.4,2126.6,0.00369646]
[1772695272529,0.56838933,2127.3,2126.6,0.56548611]
[1772695273337,0.56838933,2127.3,2126.7,0.56178965]
[1772695273839,0.56838933,2127.3,2126.9,0.56178965]
[1772695275836,0.56838933,2127.3,2126.8,2.15101232]
[1772695276040,0.56838933,2127.3,2126.9,0.56178965]
[1772695276334,0.56838933,2127.3,2126.8,1.58922267]
[1772695276537,0.56838933,2127.3,2126.7,0.56178965]
[1772695280243,0.56838933,2127.3,2126.6,0.56927605]
[1772695280940,0.56838933,2127.3,2126.8,0.56557959]
[1772695281330,0.56838933,2127.3,2126.6,0.56927605]
[1772695282243,0.57166016,2127.2,2126.6,0.00369646]
[1772695286749,0.5851575,2127.0,2126.3,0.81477541]
[1772695286945,0.5851575,2127.0,2126.3,0.2351]
[1772695287843,0.5851575,2127.0,2126.3,0.23922755]
[1772695288245,0.5851575,2126.8,2126.3,0.23922755]
[1772695288440,0.5851575,2126.8,2126.3,0.81890296]
[1772695288646,0.5851575,2126.8,2126.4,0.57967541]
[1772695288855,0.5851575,2127.1,2126.4,0.57967541]
[1772695290558,0.5851575,2127.1,2126.6,0.57967541]
[1772695290760,0.5851575,2127.2,2126.6,0.57967541]
[1772695292748,0.5851575,2127.2,2126.5,0.23509]
[1772695293355,0.5851575,2127.2,2126.4,0.57967541]
[1772695297458,0.5851575,2127.2,2126.3,0.58380296]
[1772695297658,0.5851575,2127.1,2126.3,0.00412755]
[1772695297962,0.5851575,2127.0,2126.3,0.00412755]
[1772695299765,0.5851575,2126.7,2126.3,0.00412755]
[1772695299964,0.5851575,2126.6,2126.0,0.23513]
[1772695300363,0.5851575,2126.6,2126.0,0.81480541]
[1772695300960,0.5851575,2126.6,2126.1,0.57967541]
[1772695303365,0.5851575,2126.8,2126.1,0.57967541]
[1772695303564,12.2671575,2126.8,2126.1,0.57967541]
[1772695304768,0.5851575,2126.8,2126.1,0.57967541]
[1772695304972,12.2721575,2126.8,2126.1,0.57967541]
[1772695305364,0.5851575,2127.0,2126.3,0.57967541]
[1772695305764,0.5851575,2127.2,2126.3,0.57967541]
[1772695305961,0.5851575,2127.2,2126.5,0.57967541]
[1772695314076,0.57845862,2127.5,2126.8,0.60187573]
[1772695315169,0.57845862,2127.5,2126.9,0.60187573]
[1772695315564,0.57845862,2127.5,2126.8,0.83692573]
[1772695318574,0.57845862,2127.5,2126.9,0.60187573]
[1772695321275,0.57845862,2127.5,2126.4,0.60187573]
[1772695321780,0.57845862,2127.5,2126.6,0.60187573]
[1772695322778,0.57845862,2127.4,2126.8,0.60187573]
[1772695323077,0.00449451,2127.6,2126.8,0.60187573]
[1772695323078,0.57845862,2127.5,2126.8,0.60187573]
[1772695326376,0.57845862,2127.5,2126.7,0.23507]
[1772695326576,0.57845862,2127.5,2126.7,0.83694573]
[1772695326780,0.57845862,2127.5,2126.8,0.60187573]
[1772695333586,0.00449451,2127.6,2126.5,5.80390486]
[1772695333587,0.00449451,2127.6,2127.0,0.60187573]
[1772695333793,0.57845862,2127.7,2127.2,0.60187573]
[1772695333994,0.57845862,2127.8,2127.2,0.60187573]
[1772695334390,0.57845862,2128.0,2127.4,0.60187573]
[1772695334789,0.58283341,2128.0,2127.4,0.60187573]
[1772695334984,0.00437479,2128.0,2127.4,0.60187573]
[1772695335187,0.57845862,2128.7,2127.9,0.60187573]
[1772695335792,0.57845862,2128.6,2127.9,0.60187573]
[1772695336189,0.58295966,2128.6,2127.9,0.60565823]
[1772695338599,0.58295966,2128.6,2127.9,0.0037825]
[1772695338900,0.58295966,2128.6,2127.6,0.60187573]
[1772695339295,0.58980723,2128.4,2127.6,0.60187573]
[1772695339895,0.58980723,2128.4,2127.6,0.60682165]
[1772695340295,0.58980723,2128.4,2127.6,0.00494592]
[1772695341091,13.29835669,2128.5,2127.3,0.235]
[1772695341092,0.58980723,2128.1,2127.3,0.235]
[1772695341296,0.58980723,2128.1,2127.3,0.80275532]
[1772695341492,0.58980723,2128.1,2127.4,0.56775532]
[1772695341690,11.706,2128.5,2127.4,0.56775532]
[1772695341691,0.58980723,2128.5,2127.6,0.56775532]
[1772695341895,0.58980723,2128.5,2127.8,0.56775532]
[1772695342299,0.58980723,2128.5,2127.8,0.57280681]
[1772695354306,0.00450104,2128.6,2128.0,0.57056565]
[1772695354506,0.56138521,2128.7,2128.0,0.57056565]
[1772695354706,0.56138521,2129.2,2128.2,0.57056565]
[1772695355608,0.56529431,2129.2,2128.2,0.57056565]
[1772695357203,0.56529431,2129.2,2128.4,0.57056565]
[1772695359604,0.0039091,2129.2,2128.4,0.57056565]
[1772695361411,0.56529431,2129.2,2128.4,0.57056565]
[1772695367114,0.0039091,2129.2,2128.8,0.57056565]
[1772695367319,0.56138521,2129.4,2128.8,0.57056565]
[1772695368418,0.56505409,2129.4,2128.8,0.57056565]
[1772695369121,0.54884856,2129.3,2128.8,0.57056565]
[1772695374419,0.00366888,2129.4,2128.8,0.57056565]
[1772695374820,0.54884856,2129.8,2129.0,0.57302673]
[1772695375724,0.55456931,2129.8,2129.0,0.57302673]
[1772695376024,0.55456931,2129.8,2128.8,0.57302673]
[1772695376232,0.55456931,2129.8,2128.5,0.57302673]
[1772695378330,0.54884856,2129.7,2128.5,0.57302673]
[1772695379830,3.1700293,2129.6,2128.5,0.57302673]
[1772695380027,0.54884856,2129.5,2128.5,0.57302673]
[1772695380828,0.54884856,2129.3,2128.4,0.57302673]
[1772695381635,0.54884856,2129.1,2128.0,0.57302673]
[1772695382835,0.54884856,2129.0,2128.0,0.57302673]
[1772695383131,0.54884856,2128.9,2128.0,0.57302673]
[1772695383523,0.54884856,2128.9,2127.9,0.57302673]
[1772695383727,0.54884856,2128.8,2127.8,0.57807822]
[1772695383927,0.54884856,2128.6,2127.8,0.57807822]
[1772695390436,0.54884856,2128.4,2127.8,0.57807822]
[1772695391732,0.54884856,2128.5,2127.8,0.57807822]
[1772695392537,2.13888911,2128.5,2127.8,0.57807822]
[1772695392733,0.54884856,2128.4,2127.8,0.57807822]
[1772695397841,0.54884856,2128.4,2127.8,0.00505149]
[1772695398541,0.54884856,2128.4,2127.8,0.57807822]
[1772695399544,0.59999781,2128.3,2127.6,0.60862629]
[1772695400443,0.6034792,2128.3,2127.6,0.6141265]
[1772695401843,0.00348139,2128.3,2127.6,0.6141265]
[1772695402351,12.26199781,2128.7,2127.6,0.6141265]
[1772695402652,0.59999781,2128.6,2127.6,0.6141265]
[1772695403352,0.59999781,2128.6,2127.8,0.60862629]
[1772695403353,0.60365041,2128.6,2127.8,0.60862629]
[1772695404050,0.0036526,2128.6,2128.0,0.60862629]
[1772695405045,0.59999781,2128.9,2128.0,0.60862629]
[1772695406058,0.6059828,2128.9,2128.0,0.60862629]
[1772695411963,0.55057168,2128.8,2128.0,0.60862629]
[1772695412764,0.55057168,2128.7,2128.0,0.60862629]
[1772695422670,0.55057168,2128.6,2128.0,0.60862629]
[1772695426670,3.93817403,2128.8,2128.0,0.60862629]
[1772695426870,0.55655667,2128.9,2128.2,0.57453084]
[1772695428172,0.00598499,2128.9,2128.2,0.57453084]
[1772695429072,4.51170399,2129.5,2128.6,0.57691167]
[1772695429263,12.27152996,2129.5,2128.6,0.57691167]
[1772695429570,0.57352996,2129.4,2128.6,0.57691167]
[1772695429972,0.57943858,2129.4,2128.6,0.57691167]
[1772695431468,0.00590862,2129.4,2128.6,0.57691167]
[1772695434676,0.57943858,2129.4,2128.6,0.57691167]
[1772695435177,0.57352996,2129.3,2128.6,0.57691167]
[1772695435969,0.00590862,2129.4,2128.6,0.57691167]
[1772695436272,0.57943858,2129.4,2128.6,0.57691167]
[1772695436677,0.57352996,2129.3,2128.6,0.57691167]
[1772695441383,0.57352996,2129.3,2128.5,0.57691167]
[1772695446784,0.00590862,2129.4,2128.7,0.57691167]
[1772695447587,0.57352996,2129.6,2128.9,0.57691167]
[1772695447783,0.57352996,2129.8,2129.0,0.57691167]
[1772695448689,0.57816371,2129.8,2129.0,0.57691167]
[1772695450388,0.00463375,2129.8,2129.0,0.57691167]
[1772695455395,0.57352996,2130.1,2129.2,0.57691167]
[1772695456395,0.57730808,2130.1,2129.2,0.58136463]
[1772695457898,0.57352996,2130.0,2129.2,0.58136463]